fUSD/lending_fUSD_20260329
["ID","MTS","AMOUNT","RATE_DAILY","PERIOD"]
[419007580,1774743032203,-293.0,0.00012009,2]
[419007581,1774743032216,-250.0,0.00012009,2]
[419007582,1774743032225,-195.0,0.00012009,2]
[419007583,1774743032235,-112.0,0.00012021,2]
[419007585,1774743032600,-1388.0,0.00012021,2]
[419007587,1774743032610,-1200.0,0.00012223,2]
[419007588,1774743032620,-858.58915074,0.00012224,2]
[419007589,1774743032631,-564.90086898,0.00012224,2]
[419007590,1774743032643,-88.974179,0.00012224,2]
[419007591,1774743032652,-653.87504798,0.00012224,2]
[419007592,1774743032662,-2183.2448557,0.00012224,2]
[419007593,1774743032675,-2193.31306858,0.00012224,2]
[419007594,1774743032694,-811.50471421,0.00012224,2]
[419007595,1774743032707,-10195.26878332,0.00012224,2]
[419007596,1774743032717,-297.0184146,0.00012313,2]
[419007597,1774743032727,-38781.84945737,0.00012323,2]
[419007598,1774743032738,-250.0,0.00012323,2]
[419007599,1774743032755,-2274.0496613,0.00012323,2]
[419007601,1774743038185,-331.43,0.00012322,2]
[419007602,1774743038329,-168.57,0.00012322,2]
[419007603,1774743038339,-242.33667214,0.00012322,2]
[419007604,1774743038349,-500.0,0.00012322,2]
[419007605,1774743038361,-189.09332786,0.00012322,2]
[419007606,1774743038376,-386.65006043,0.00012322,2]
[419007607,1774743038386,-561.05747095,0.00012322,2]
[419007608,1774743038396,-500.0,0.00012322,2]
[419007609,1774743038407,-500.0,0.00012322,2]
[419007610,1774743038418,-278.30424113,0.00012322,2]
[419007611,1774743038430,-500.0,0.00012322,2]
[419007612,1774743038443,-500.0,0.00012322,2]
[419007613,1774743038454,-500.0,0.00012322,2]
[419007614,1774743038466,-500.0,0.00012322,2]
[419007615,1774743038476,-500.0,0.00012322,2]
[419007616,1774743038488,-500.0,0.00012322,2]
[419007617,1774743038499,-500.0,0.00012322,2]
[419007618,1774743038509,-500.0,0.00012322,2]
[419007619,1774743038520,-500.0,0.00012322,2]
[419007620,1774743038530,-500.0,0.00012322,2]
[419007621,1774743038542,-500.0,0.00012322,2]
[419007622,1774743038553,-500.0,0.00012322,2]
[419007623,1774743038564,-500.0,0.00012322,2]
[419007624,1774743038574,-500.0,0.00012322,2]
[419007625,1774743038585,-500.0,0.00012322,2]
[419007626,1774743038597,-500.0,0.00012322,2]
[419007627,1774743038607,-500.0,0.00012322,2]
[419007628,1774743038618,-500.0,0.00012322,2]
[419007629,1774743038631,-500.0,0.00012322,2]
[419007630,1774743038643,-500.0,0.00012322,2]
[419007631,1774743038654,-500.0,0.00012322,2]
[419007632,1774743038665,-500.0,0.00012322,2]
[419007633,1774743038675,-500.0,0.00012322,2]
[419007634,1774743038686,-509.23399384,0.00012322,2]
[419007635,1774743038697,-500.0,0.00012322,2]
[419007636,1774743038709,-500.0,0.00012322,2]
[419007637,1774743038719,-500.0,0.00012322,2]
[419007638,1774743038730,-500.0,0.00012322,2]
[419007639,1774743038741,-500.0,0.00012322,2]
[419007641,1774743038751,-2458694.10088133,0.00012323,2]
[419007643,1774743038761,-1500000.0,0.00012323,2]
[419007645,1774743038772,-500.0,0.00012373,2]
[419007647,1774743038783,-500.0,0.00012373,2]
[419007649,1774743038793,-500.0,0.00012373,2]
[419007651,1774743038803,-500.0,0.00012373,2]
[419007654,1774743038814,-500.15528333,0.00012373,2]
[419007656,1774743038824,-588.47473116,0.00012373,2]
[419007658,1774743038834,-500.0,0.00012373,2]
[419007660,1774743038844,-500.0,0.00012373,2]
[419007662,1774743038855,-500.0,0.00012373,2]
[419007664,1774743038865,-500.0,0.00012373,2]
[419007666,1774743038875,-500.0,0.00012373,2]
[419007668,1774743038886,-500.0,0.00012373,2]
[419007671,1774743038896,-500.0,0.00012373,2]
[419007673,1774743038906,-500.0,0.00012373,2]
[419007675,1774743038918,-409.73483628,0.00012373,2]
[419007677,1774743038929,-500.0,0.00012373,2]
[419007679,1774743038939,-501.85241925,0.00012373,2]
[419007681,1774743038950,-169.86308771,0.00012373,2]
[419007684,1774743038961,-500.273267,0.00012373,2]
[419007686,1774743038972,-151.56414165,0.000124,2]
[419007688,1774743038982,-150.0,0.000124,2]
[419007690,1774743038993,-150.0,0.00012422,2]
[419007692,1774743039004,-300.0,0.00012422,2]
[419007695,1774743039015,-44935.7627,0.00012423,2]
[419007697,1774743039025,-150.0,0.00012423,7]
[419007699,1774743039036,-2000.723,0.00012423,2]
[419007701,1774743039047,-173.419,0.00012423,2]
[419007703,1774743039057,-150.99,0.00012423,2]
[419007706,1774743039068,-9999.99,0.00012423,2]
[419007708,1774743039079,-1190.0,0.00012423,2]
[419007710,1774743039090,-1792.87,0.00012424,2]
[419007712,1774743039101,-499.89808899,0.00012424,2]
[419007714,1774743039112,-593.04306072,0.00012424,2]
[419007716,1774743039122,-37636.99204441,0.00012424,2]
[419007718,1774743039133,-156.25,0.00012455,2]
[419007721,1774743039143,-999.99,0.00012455,2]
[419007723,1774743039153,-500.50577839,0.00012473,2]
[419007741,1774743039310,-500.26796584,0.00012473,2]
[419007743,1774743039324,-235.30570928,0.00012473,2]
[419007745,1774743039334,-206.37595366,0.00012473,2]
[419007747,1774743039343,-1479.6818734,0.00012473,2]
[419007749,1774743039352,-9401.0,0.00012493,2]
[419007751,1774743039361,-297.0184146,0.00012514,2]
[419007753,1774743039370,-151.0,0.00012521,2]
[419007755,1774743039379,-151.0,0.00012521,2]
[419007757,1774743039388,-500.0,0.00012523,2]
[419007759,1774743039398,-500.0,0.00012573,2]
[419007761,1774743039407,-500.35186235,0.00012573,2]
[419007763,1774743039416,-500.30534857,0.00012573,2]
[419007765,1774743039426,-501.14876687,0.00012573,2]
[419007767,1774743039435,-500.0,0.00012573,2]
[419007769,1774743039445,-15383.33142177,0.00012632,2]
[419007771,1774743039454,-172.0,0.00012732,2]
[419007772,1774743039464,-493.0,0.00012737,2]
[419007774,1774743039473,-653.87504794,0.00012749,2]
[419007776,1774743039482,-653.87504794,0.00012749,2]
[419007778,1774743039491,-265.0,0.00012763,2]
[419007781,1774743039501,-500.0,0.00012797,2]
[419007783,1774743039511,-37636.99204433,0.0001281,2]
[419007785,1774743039520,-1000.0,0.00012921,2]
[419007787,1774743039530,-500.62783858,0.00012921,2]
[419007789,1774743039540,-1000.0,0.00012921,2]
[419007791,1774743039550,-199.77172522,0.00012921,2]
[419007793,1774743039559,-429.59323127,0.00012921,2]
[419007795,1774743039569,-1000.0,0.00012921,2]
[419007797,1774743039578,-1000.0,0.00012921,2]
[419007799,1774743039588,-870.15484201,0.00012921,2]
[419007801,1774743039598,-1000.0,0.00012921,2]
[419007803,1774743039608,-503.17489861,0.00012921,2]
[419007805,1774743039617,-954.44481279,0.00012921,2]
[419007807,1774743039627,-103984.14414224,0.00012999,2]
[419007809,1774743039637,-250.0,0.00013,2]
[419007811,1774743039647,-593.04306068,0.00013003,2]
[419007813,1774743039657,-15383.33142177,0.00013041,2]
[419007815,1774743039667,-500.0,0.00013071,2]
[419007816,1774743039676,-1000.0,0.00013121,2]
[419007817,1774743039686,-163.0300145,0.0001318,2]
[419007818,1774743039697,-37636.99204433,0.00013196,2]
[419007819,1774743039706,-195.0,0.00013197,2]
[419007820,1774743039717,-250.0,0.00013197,2]
[419007821,1774743039727,-250.0,0.0001321,2]
[419007822,1774743039737,-653.87504794,0.00013274,2]
[419007823,1774743039746,-653.87504794,0.00013274,2]
[419007824,1774743039756,-418.68748774,0.00013345,2]
[419007825,1774743039766,-1680.0,0.00013445,2]
[419007826,1774743039776,-15383.33142177,0.00013449,2]
[419007827,1774743039786,-1004.28717166,0.00013468,2]
[419007828,1774743039796,-500.0,0.00013468,2]
[419007829,1774743039805,-1098.58411617,0.00013468,2]
[419007830,1774743039816,-1500.0,0.00013468,2]
[419007831,1774743039825,-1500.0,0.00013468,2]
[419007832,1774743039835,-839.2403,0.000135,2]
[419007833,1774743039844,-255.0,0.00013515,2]
[419007834,1774743039854,-593.04306068,0.00013583,2]
[419007835,1774743039864,-37636.99204433,0.00013583,2]
[419007836,1774743039873,-420.0,0.0001363,2]
[419007837,1774743039883,-1000.0,0.00013668,2]
[419007838,1774743039892,-500.0,0.00013698,2]
[419007839,1774743039902,-500.0,0.00013698,2]
[419007840,1774743039911,-270.78845739,0.00013698,2]
[419007841,1774743039922,-637.02606428,0.00013698,2]
[419007842,1774743039932,-584.75445058,0.00013698,2]
[419007843,1774743039942,-225.41,0.00013698,2]
[419007844,1774743039951,-500.0,0.00013698,2]
[419007845,1774743039961,-500.0,0.00013698,2]
[419007846,1774743039970,-500.0,0.00013698,2]
[419007847,1774743039980,-500.0,0.00013698,2]
[419007848,1774743039989,-500.0,0.00013698,2]
[419007849,1774743039999,-500.0,0.00013698,2]
[419007850,1774743040009,-635.09378331,0.00013698,2]
[419007851,1774743040018,-665.85,0.00013698,2]
[419007852,1774743040028,-665.85,0.00013698,2]
[419007853,1774743040038,-665.85,0.00013698,2]
[419007854,1774743040048,-665.85,0.00013698,2]
[419007855,1774743040058,-665.85,0.00013698,2]
[419007856,1774743040068,-665.85,0.00013698,2]
[419007857,1774743040077,-665.85,0.00013698,2]
[419007858,1774743040087,-665.85,0.00013698,2]
[419007859,1774743040096,-665.85,0.00013698,2]
[419007860,1774743040107,-665.85,0.00013698,2]
[419007861,1774743040116,-665.85,0.00013698,2]
[419007862,1774743040126,-665.85,0.00013698,2]
[419007863,1774743040135,-665.85,0.00013698,2]
[419007864,1774743040144,-665.85,0.00013698,2]
[419007865,1774743040154,-665.85,0.00013698,2]
[419007866,1774743040163,-665.85,0.00013698,2]
[419007867,1774743040173,-665.85,0.00013698,2]
[419007868,1774743040182,-500.0,0.00013698,2]
[419007869,1774743040192,-500.0,0.00013698,2]
[419007870,1774743040201,-500.0,0.00013698,2]
[419007871,1774743040211,-634.8493404,0.00013698,2]
[419007872,1774743040220,-500.0,0.00013698,2]
[419007873,1774743040230,-280.4257349,0.00013698,2]
[419007874,1774743040239,-548.0821861,0.00013698,2]
[419007875,1774743040249,-500.0,0.00013698,2]
[419007876,1774743040259,-500.0,0.00013698,2]
[419007877,1774743040268,-506.73713909,0.00013698,2]
[419007878,1774743040277,-500.0,0.00013698,2]
[419007879,1774743040287,-500.0,0.00013698,2]
[419007880,1774743040298,-500.0,0.00013698,2]
[419007881,1774743040307,-500.0,0.00013698,2]
[419007882,1774743040318,-500.0,0.00013698,2]
[419007883,1774743040327,-500.0,0.00013698,2]
[419007884,1774743040337,-500.0,0.00013698,2]
[419007885,1774743040347,-500.0,0.00013698,2]
[419007886,1774743040356,-500.0,0.00013698,2]
[419007887,1774743040366,-500.0,0.00013698,2]
[419007888,1774743040376,-500.0,0.00013698,2]
[419007889,1774743040386,-500.0,0.00013698,2]
[419007890,1774743040396,-500.0,0.00013698,2]
[419007891,1774743040406,-500.0,0.00013698,2]
[419007892,1774743040416,-500.0,0.00013698,2]
[419007893,1774743040425,-500.0,0.00013698,2]
[419007894,1774743040435,-500.0,0.00013698,2]
[419007895,1774743040444,-150.0,0.00013699,2]
[419007896,1774743040454,-150.0,0.00013699,2]
[419007897,1774743040464,-150.0,0.00013699,2]
[419007898,1774743040473,-370.96,0.00013699,2]
[419007899,1774743040484,-500.0,0.00013699,2]
[419007900,1774743040494,-500.0,0.00013699,2]
[419007901,1774743040503,-500.0,0.00013699,2]
[419007902,1774743040513,-500.0,0.00013699,2]
[419007903,1774743040523,-166.35931834,0.00013699,2]
[419007904,1774743040533,-500.0,0.00013699,2]
[419007905,1774743040542,-500.0,0.00013699,2]
[419007906,1774743040552,-500.0,0.00013699,2]
[419007907,1774743040562,-500.42331564,0.00013699,2]
[419007908,1774743040572,-500.0,0.00013699,2]
[419007909,1774743040581,-321.82636013,0.00013699,2]
[419007910,1774743040591,-433.04,0.000137,2]
[419007911,1774743040601,-775.4,0.000137,2]
[419007912,1774743040611,-653.87504794,0.00013799,2]
[419007913,1774743040620,-4722.0,0.00013835,2]
[419007914,1774743040629,-15383.33142177,0.00013858,2]
[419007915,1774743040640,-582.37,0.000139,2]
[419007916,1774743040649,-6617.54,0.000139,2]
[419007917,1774743040658,-1180.46,0.000139,2]
[419007918,1774743040668,-37636.99204433,0.00013969,2]
[419007919,1774743040678,-150.0,0.00013973,2]
[419007920,1774743040687,-150.0,0.00013973,2]
[419007921,1774743040697,-513.0,0.00014,2]
[419007922,1774743040707,-7029.87228447,0.00014,7]
[419007923,1774743040717,-2000.0,0.00014016,2]
[419007924,1774743040727,-1170.15833684,0.00014016,2]
[419007925,1774743040737,-500.0,0.00014018,2]
[419007926,1774743040748,-500.0,0.00014091,2]
[419007927,1774743040757,-500.0,0.00014091,2]
[419007928,1774743040767,-500.0,0.00014091,2]
[419007929,1774743040777,-857.31336757,0.00014115,2]
[419007930,1774743040786,-217.84187082,0.00014147,2]
[419007931,1774743040795,-593.04306068,0.00014162,2]
[419007932,1774743040805,-499.89808897,0.0001418,2]
[419007933,1774743040814,-235.30570927,0.00014187,2]
[419007934,1774743040825,-1479.68187339,0.00014187,2]
[419007935,1774743040834,-150.0,0.00014247,2]
[419007936,1774743040844,-150.0,0.00014247,2]
[419007937,1774743040853,-1000.0,0.00014247,2]
[419007938,1774743040863,-1000.0,0.00014247,2]
[419007939,1774743040872,-500.0,0.00014247,2]
[419007940,1774743040882,-1000.0,0.00014247,2]
[419007941,1774743040892,-500.92226367,0.00014247,2]
[419007942,1774743040902,-1000.0,0.00014247,2]
[419007943,1774743040911,-1000.85155912,0.00014247,2]
[419007944,1774743040922,-15383.33142177,0.00014266,2]
[419007945,1774743040932,-37636.99204433,0.00014355,2]
[419007946,1774743040942,-150.9157,0.000145,2]
[419007947,1774743040952,-500.0,0.00014564,2]
[419007948,1774743040961,-374.31074407,0.00014566,2]
[419007949,1774743040971,-1000.0,0.00014639,2]
[419007950,1774743040981,-1000.0,0.00014639,2]
[419007951,1774743040990,-507.33813259,0.00014639,2]
[419007952,1774743041000,-15383.33142177,0.00014675,2]
[419007953,1774743041010,-433.0,0.00014707,2]
[419007954,1774743041019,-593.04306068,0.00014741,2]
[419007955,1774743041028,-37636.99204433,0.00014741,2]
[419007956,1774743041038,-2351.0,0.0001479,2]
[419007957,1774743041048,-183.65884113,0.00014795,2]
[419007958,1774743041058,-1500.0,0.00014795,2]
[419007959,1774743041067,-1500.0,0.00014795,2]
[419007960,1774743041078,-579.19039319,0.00014795,2]
[419007961,1774743041087,-587.0,0.00014957,2]
[419007962,1774743041096,-300.0,0.00015,2]
[419007963,1774743041106,-684.71,0.00015068,2]
[419007964,1774743041115,-15383.33142177,0.00015083,2]
[419007965,1774743041125,-37636.99204433,0.00015128,2]
[419007966,1774743041136,-1075.34860635,0.00015187,2]
[419007967,1774743041146,-500.0,0.00015288,2]
[419007968,1774743041155,-500.0,0.00015289,2]
[419007969,1774743041165,-150.0,0.00015289,2]
[419007970,1774743041174,-500.0,0.00015289,2]
[419007971,1774743041183,-153.79474384,0.00015289,2]
[419007972,1774743041193,-500.0,0.00015289,2]
[419007973,1774743041203,-500.0,0.00015289,2]
[419007974,1774743041213,-500.0,0.00015289,2]
[419007975,1774743041222,-178.17181351,0.00015289,2]
[419007976,1774743041232,-389.43547538,0.00015289,2]
[419007977,1774743041242,-500.0,0.00015289,2]
[419007978,1774743041252,-500.0,0.00015289,2]
[419007979,1774743041261,-325.82076513,0.00015289,2]
[419007980,1774743041271,-500.0,0.00015289,2]
[419007981,1774743041280,-156.15844264,0.00015289,2]
[419007982,1774743041290,-500.0,0.00015289,2]
[419007983,1774743041300,-500.0,0.00015289,2]
[419007984,1774743041309,-150.0,0.00015289,2]
[419007985,1774743041319,-500.0,0.00015289,2]
[419007986,1774743041329,-500.0,0.00015289,2]
[419007987,1774743041340,-207.67586054,0.00015289,2]
[419007988,1774743041349,-500.0,0.00015289,2]
[419007989,1774743041359,-500.0,0.00015289,2]
[419007990,1774743041369,-500.0,0.00015289,2]
[419007991,1774743041379,-500.0,0.00015289,2]
[419007992,1774743041388,-500.0,0.00015289,2]
[419007993,1774743041398,-500.0,0.00015289,2]
[419007994,1774743041408,-500.0,0.00015289,2]
[419007995,1774743041417,-500.0,0.00015289,2]
[419007996,1774743041427,-500.0,0.00015289,2]
[419007997,1774743041436,-500.0,0.00015289,2]
[419007998,1774743041446,-500.0,0.00015289,2]
[419007999,1774743041456,-500.0,0.00015289,2]
[419008000,1774743041465,-349.64272272,0.00015289,2]
[419008001,1774743041475,-500.0,0.00015289,2]
[419008002,1774743041485,-500.0,0.00015289,2]
[419008003,1774743041495,-520.8454453,0.00015289,2]
[419008004,1774743041505,-500.0,0.00015289,2]
[419008005,1774743041515,-206.13980161,0.00015289,2]
[419008006,1774743041524,-500.0,0.00015289,2]
[419008007,1774743041534,-500.0,0.00015289,2]
[419008008,1774743041543,-220.71245266,0.00015289,2]
[419008009,1774743041553,-593.04306068,0.00015321,2]
[419008010,1774743041563,-2000.0,0.00015342,2]
[419008011,1774743041572,-781.0056123,0.00015342,2]
[419008012,1774743041581,-150.0,0.0001546,2]
[419008013,1774743041591,-3486.5775,0.00015463,2]
[419008014,1774743041600,-1000.0,0.00015463,2]
[419008015,1774743041610,-15383.33142177,0.00015492,2]
[419008016,1774743041619,-2002.62847189,0.000155,3]
[419008017,1774743041628,-4000.0,0.00015507,2]
[419008018,1774743041638,-37636.99204433,0.00015514,2]
[419008019,1774743041647,-500.0,0.00015562,2]
[419008020,1774743041658,-500.0,0.00015562,2]
[419008021,1774743041667,-616.12,0.00015562,2]
[419008022,1774743041676,-500.0,0.00015562,2]
[419008023,1774743041686,-165.336713,0.00015582,7]
[419008024,1774743041695,-160.0,0.00015587,2]
[419008025,1774743041705,-959.64475997,0.00015587,2]
[419008026,1774743041716,-732.54446763,0.00015634,2]
[419008027,1774743041726,-307.622065,0.0001568,7]
[419008028,1774743041737,-342.101728,0.0001568,7]
[419008029,1774743041747,-154.46961228,0.00015714,2]
[419008030,1774743041757,-250.0,0.00015852,2]
[419008031,1774743041767,-357.07168,0.00015861,7]
[419008032,1774743041776,-2000.0,0.0001589,2]
[419008033,1774743041786,-1500.0,0.0001589,2]
[419008034,1774743041795,-4000.0,0.00015895,2]
[419008035,1774743041805,-665.85,0.00015899,2]
[419008036,1774743041815,-593.04306068,0.000159,2]
[419008037,1774743041826,-203047.38420107,0.000159,2]
[419008038,1774743041835,-37636.99204433,0.000159,2]
[419008039,1774743041845,-235.30570927,0.000159,2]
[419008040,1774743041855,-1479.68187339,0.000159,2]
[419008041,1774743041864,-15383.33142177,0.000159,2]
[419008042,1774743041874,-150.0,0.000159,2]
[419008043,1774743041883,-499.89808897,0.00015936,2]
[419008044,1774743041892,-3743.0,0.00015941,2]
[419008045,1774743041902,-3743.0,0.00015953,2]
[419008046,1774743041911,-5000.0,0.0001596,2]
[419008047,1774743041921,-297.0184146,0.0001599,2]
[419008048,1774743041930,-666.0,0.00015999,2]
[419008049,1774743041941,-500.0,0.00015999,2]
[419008050,1774743041951,-500.0,0.00015999,2]
[419008051,1774743041960,-616.12,0.00015999,2]
[419008052,1774743041970,-500.0,0.00015999,2]
[419008053,1774743041979,-736.0,0.00015999,2]
[419008054,1774743041989,-1000.0,0.00016,2]
[419008055,1774743041998,-1000.0,0.00016,2]
[419008056,1774743042007,-1000.0,0.00016,2]
[419008057,1774743042016,-1000.0,0.00016,2]
[419008058,1774743042026,-1000.0,0.00016,2]
[419008059,1774743042035,-1000.0,0.00016,2]
[419008060,1774743042044,-1000.0,0.00016,2]
[419008061,1774743042054,-1000.0,0.00016,2]
[419008062,1774743042063,-1000.0,0.00016,2]
[419008063,1774743042073,-1000.0,0.00016,2]
[419008064,1774743042082,-766.149,0.00016,2]
[419008065,1774743042091,-175.15,0.00016,2]
[419008066,1774743042101,-4348647.14249653,0.00016,2]
[419008067,1774743042156,-471.87366345,0.00016,2]
[419008068,1774743042167,-753.25136983,0.00016,2]
[419008069,1774743042179,-470.60992569,0.00016,2]
[419008070,1774743042413,-382.72064999,0.00012223,2]
[419008071,1774743042424,-160.0,0.00015069,2]
[419008072,1774743042434,-5672311.51179264,0.00016,2]
[419008073,1774743042455,-15000.265044,0.00016,2]
[419008074,1774743042467,-3198.82868942,0.00016,2]
[419008075,1774743042479,-914.69544861,0.00016,2]
[419008076,1774743042609,-953.00079936,0.00016,2]
[419008077,1774743042623,-21217.77210195,0.00016,2]
[419008078,1774743042636,-1534.33277424,0.00016,2]
[419008079,1774743042648,-651.84043958,0.00016,2]
[419008080,1774743042659,-1111.36432515,0.00016,2]
[419008081,1774743043509,-160.0,0.00015582,2]
[419008082,1774743043520,-1875.486362,0.00016,2]
[419008114,1774743046573,-11291.4,0.00016,2]
[419008115,1774743046809,-1994.49999997,0.00016,2]
[419008120,1774743294512,4000.0,0.00017,60]
[419008133,1774743857443,1751.3871447,0.00011507,2]
[419008134,1774744005107,200.0,0.00011498,2]
[419008144,1774744232261,-150.0,0.00011591,2]
[419008145,1774744232270,-103.83271447,0.0001161,2]
[419008146,1774744232392,-91.16728553,0.0001161,2]
[419008147,1774744232402,-250.0,0.00011629,2]
[419008148,1774744232412,-195.0,0.00011666,2]
[419008149,1774744232421,-250.0,0.00011733,2]
[419008150,1774744232431,-191.360325,0.00011742,2]
[419008151,1774744232440,-799.17,0.00011829,2]
[419008152,1774744232450,-1200.0,0.00011842,2]
[419008153,1774744232459,-300.0,0.00011842,2]
[419008154,1774744232468,-300.0,0.00011842,2]
[419008155,1774744232478,-14243.83,0.00011843,2]
[419008156,1774744232487,-452.984,0.00011897,2]
[419008157,1774744232496,-1720.8,0.00012055,2]
[419008158,1774744232505,-150.0,0.000121,2]
[419008159,1774744232514,-492.81,0.00012114,2]
[419008160,1774744232523,-310.0,0.00012115,2]
[419008162,1774744232532,-304.68977321,0.00012122,2]
[419008163,1774744232542,-304.68977321,0.00012122,2]
[419008164,1774744232551,-182.19721526,0.00012122,2]
[419008165,1774744232561,-191.36032499,0.00012123,2]
[419008166,1774744232571,-221.0,0.00012161,2]
[419008167,1774744232580,-154.0,0.00012161,2]
[419008168,1774744232589,-150.0,0.0001222,2]
[419008169,1774744232599,-500.0,0.00012221,2]
[419008170,1774744232608,-169.6356705,0.00012221,2]
[419008171,1774744232617,-500.0,0.00012221,2]
[419008172,1774744232627,-500.0,0.00012221,2]
[419008174,1774744232636,-253.02037181,0.00012221,2]
[419008176,1774744232646,-336.59730327,0.00012221,2]
[419008178,1774744232655,-500.0,0.00012221,2]
[419008180,1774744232664,-500.0,0.00012221,2]
[419008182,1774744232673,-500.0,0.00012221,2]
[419008184,1774744232682,-500.0,0.00012221,2]
[419008186,1774744232691,-500.0,0.00012221,2]
[419008188,1774744232700,-291.54887071,0.00012221,2]
[419008190,1774744232710,-500.0,0.00012221,2]
[419008192,1774744232719,-500.0,0.00012221,2]
[419008194,1774744232728,-500.0,0.00012221,2]
[419008196,1774744232738,-500.0,0.00012221,2]
[419008198,1774744232748,-466.20735052,0.00012221,2]
[419008200,1774744232757,-500.0,0.00012221,2]
[419008202,1774744232766,-500.0,0.00012221,2]
[419008204,1774744232775,-500.0,0.00012221,2]
[419008206,1774744232784,-455.45616034,0.00012221,2]
[419008208,1774744232793,-500.0,0.00012221,2]
[419008210,1774744232802,-500.0,0.00012221,2]
[419008212,1774744232812,-500.0,0.00012221,2]
[419008214,1774744232821,-500.0,0.00012221,2]
[419008216,1774744232830,-500.0,0.00012221,2]
[419008218,1774744232839,-500.0,0.00012221,2]
[419008220,1774744232849,-500.0,0.00012221,2]
[419008222,1774744232858,-500.0,0.00012221,2]
[419008224,1774744232868,-500.0,0.00012221,2]
[419008226,1774744232877,-500.0,0.00012221,2]
[419008228,1774744232886,-500.0,0.00012221,2]
[419008230,1774744232896,-500.0,0.00012221,2]
[419008232,1774744232906,-500.0,0.00012221,2]
[419008234,1774744232915,-500.0,0.00012221,2]
[419008236,1774744232924,-500.0,0.00012221,2]
[419008238,1774744232933,-500.0,0.00012221,2]
[419008240,1774744232943,-500.0,0.00012221,2]
[419008242,1774744232953,-500.0,0.00012221,2]
[419008244,1774744232964,-500.0,0.00012221,2]
[419008246,1774744232973,-500.0,0.00012221,2]
[419008248,1774744232982,-500.0,0.00012221,2]
[419008250,1774744232992,-500.0,0.00012221,2]
[419008252,1774744233002,-500.0,0.00012221,2]
[419008254,1774744233011,-500.0,0.00012221,2]
[419008256,1774744233020,-500.0,0.00012221,2]
[419008258,1774744233031,-500.0,0.00012221,2]
[419008260,1774744233040,-500.0,0.00012221,2]
[419008262,1774744233050,-185.3044859,0.00012221,2]
[419008264,1774744233059,-500.0,0.00012221,2]
[419008266,1774744233069,-500.0,0.00012221,2]
[419008268,1774744233078,-500.0,0.00012221,2]
[419008270,1774744233088,-500.0,0.00012221,2]
[419008272,1774744233097,-500.0,0.00012221,2]
[419008274,1774744233106,-200.0,0.00012221,2]
[419008276,1774744233117,-500.0,0.00012221,2]
[419008278,1774744233127,-500.0,0.00012221,2]
[419008280,1774744233136,-500.0,0.00012221,2]
[419008282,1774744233146,-500.0,0.00012221,2]
[419008284,1774744233155,-500.0,0.00012221,2]
[419008286,1774744233164,-500.0,0.00012221,2]
[419008294,1774744233297,-500.0,0.00012221,2]
[419008295,1774744233308,-500.0,0.00012221,2]
[419008296,1774744233319,-500.0,0.00012221,2]
[419008297,1774744233328,-500.0,0.00012221,2]
[419008298,1774744233339,-500.0,0.00012221,2]
[419008299,1774744233348,-111482.64332405,0.00012222,2]
[419008304,1774744238436,-370.17785575,0.00012222,2]
[419008305,1774744238448,-3744.71865392,0.00012222,2]
[419008306,1774744238460,-535.41792625,0.00012222,2]